[Event "Early-Titled-Tuesday-Blitz-June-18-2024"]
[Site "Chess.com"]
[Date "2024.06.18"]
[Round "8"]
[White "Andrei_Skvortsov"]
[Black "dennisodessa"]
[Result "1-0"]
[WhiteElo "2780"]
[BlackElo "2608"]
[TimeControl "180+1"]
[EndTime "9:29:31 PDT"]
[Termination "Andrei_Skvortsov won by resignation"]

1. e4 {[%clk 0:03:00.9]} 1... e6 {[%clk 0:02:50.1]} 2. Nf3 {[%clk 0:02:57.8]}
2... d5 {[%clk 0:02:49.3]} 3. exd5 {[%clk 0:02:58.7]} 3... exd5 {[%clk
0:02:50.2]} 4. Bd3 {[%clk 0:02:58.9]} 4... Nf6 {[%clk 0:02:48.7]} 5. O-O {[%clk
0:02:59.4]} 5... Be7 {[%clk 0:02:49.4]} 6. Re1 {[%clk 0:02:58.8]} 6... O-O
{[%clk 0:02:50.3]} 7. c3 {[%clk 0:02:59.3]} 7... Bg4 {[%clk 0:02:48.9]} 8. h3
{[%clk 0:02:59.1]} 8... Bh5 {[%clk 0:02:48.8]} 9. Bc2 {[%clk 0:02:59.7]} 9...
Nbd7 {[%clk 0:02:43.2]} 10. d4 {[%clk 0:02:59.7]} 10... Bd6 {[%clk 0:02:37]} 11.
Bg5 {[%clk 0:02:59.3]} 11... c6 {[%clk 0:02:35.8]} 12. g4 {[%clk 0:02:54.3]}
12... Bg6 {[%clk 0:02:35.3]} 13. Kg2 {[%clk 0:02:54.8]} 13... Qc7 {[%clk
0:02:34.6]} 14. Nbd2 {[%clk 0:02:49.3]} 14... Rfe8 {[%clk 0:02:32.9]} 15. Bxg6
{[%clk 0:02:46.3]} 15... hxg6 {[%clk 0:02:25.3]} 16. Qc2 {[%clk 0:02:46.4]}
16... Rxe1 {[%clk 0:02:17.2]} 17. Rxe1 {[%clk 0:02:45.7]} 17... Re8 {[%clk
0:02:18.1]} 18. Rxe8+ {[%clk 0:02:45.5]} 18... Nxe8 {[%clk 0:02:17.5]} 19. Qd3
{[%clk 0:02:44.2]} 19... Nef6 {[%clk 0:02:13.1]} 20. a4 {[%clk 0:02:34.5]} 20...
Bf4 {[%clk 0:02:12.9]} 21. Bh4 {[%clk 0:02:34.2]} 21... Qb8 {[%clk 0:02:05.6]}
22. a5 {[%clk 0:02:21.9]} 22... b5 {[%clk 0:01:59.1]} 23. axb6 {[%clk
0:02:21.1]} 23... axb6 {[%clk 0:01:59.2]} 24. b4 {[%clk 0:02:20.6]} 24... b5
{[%clk 0:01:57.6]} 25. Nb3 {[%clk 0:02:18.3]} 25... Ne4 {[%clk 0:01:53.5]} 26.
Na5 {[%clk 0:02:17.4]} 26... Qc7 {[%clk 0:01:49.9]} 27. Ng1 {[%clk 0:02:05.3]}
27... Nb6 {[%clk 0:00:55.5]} 28. f3 {[%clk 0:02:01.1]} 28... Ng5 {[%clk
0:00:27.7]} 29. Ne2 {[%clk 0:01:56]} 29... Ne6 {[%clk 0:00:27.8]} 30. Bf2 {[%clk
0:01:49.1]} 30... Nc4 {[%clk 0:00:27.6]} 31. Nxc4 {[%clk 0:01:44.5]} 31... bxc4
{[%clk 0:00:28.5]} 32. Qb1 {[%clk 0:01:44.7]} 32... Qa7 {[%clk 0:00:28.9]} 33.
b5 {[%clk 0:01:43.2]} 33... Qb7 {[%clk 0:00:24.5]} 34. b6 {[%clk 0:01:42.8]}
34... Bd6 {[%clk 0:00:16]} 35. f4 {[%clk 0:01:08.9]} 35... Nf8 {[%clk 0:00:14]}
36. f5 {[%clk 0:01:08.2]} 36... gxf5 {[%clk 0:00:14.3]} 37. gxf5 {[%clk
0:01:07.5]} 37... Nd7 {[%clk 0:00:15.1]} 38. Qa2 {[%clk 0:01:01.5]} 38... Nf8
{[%clk 0:00:16]} 39. Qa7 {[%clk 0:01:00.4]} 39... Nd7 {[%clk 0:00:16.9]} 40.
Qxb7 {[%clk 0:00:59.8]} 1-0

[Event "Early-Titled-Tuesday-Blitz-June-18-2024"]
[Site "Chess.com"]
[Date "2024.06.18"]
[Round "8"]
[White "ketster"]
[Black "PeshkaCh"]
[Result "0-1"]
[WhiteElo "2574"]
[BlackElo "2848"]
[TimeControl "180+1"]
[EndTime "9:29:33 PDT"]
[Termination "PeshkaCh won on time"]

1. d4 {[%clk 0:01:32.6]} 1... Nf6 {[%clk 0:02:59.4]} 2. c4 {[%clk 0:01:33.1]}
2... e6 {[%clk 0:02:59.6]} 3. Nc3 {[%clk 0:01:33.6]} 3... d5 {[%clk 0:03:00.3]}
4. Nf3 {[%clk 0:01:33.5]} 4... Be7 {[%clk 0:03:00.8]} 5. cxd5 {[%clk 0:01:33.3]}
5... exd5 {[%clk 0:03:00.9]} 6. Bf4 {[%clk 0:01:33.8]} 6... O-O {[%clk
0:03:01.5]} 7. e3 {[%clk 0:01:34.4]} 7... c5 {[%clk 0:03:01.9]} 8. dxc5 {[%clk
0:01:34.3]} 8... Bxc5 {[%clk 0:03:02.8]} 9. Be2 {[%clk 0:01:34.6]} 9... Nc6
{[%clk 0:03:03.4]} 10. O-O {[%clk 0:01:35.1]} 10... Bg4 {[%clk 0:03:04]} 11. Rc1
{[%clk 0:01:34.8]} 11... Be7 {[%clk 0:02:59.2]} 12. Nb5 {[%clk 0:01:34.7]} 12...
Rc8 {[%clk 0:02:59.3]} 13. h3 {[%clk 0:01:31.6]} 13... Bh5 {[%clk 0:02:59.1]}
14. Nfd4 {[%clk 0:01:31.6]} 14... Bxe2 {[%clk 0:02:55.3]} 15. Qxe2 {[%clk
0:01:32.5]} 15... Qb6 {[%clk 0:02:55.8]} 16. Nf5 {[%clk 0:01:31.5]} 16... Bc5
{[%clk 0:02:22.6]} 17. a3 {[%clk 0:01:22.7]} 17... a6 {[%clk 0:02:19.5]} 18.
Nbd6 {[%clk 0:01:15.6]} 18... Bxd6 {[%clk 0:02:12.2]} 19. Bxd6 {[%clk
0:01:11.2]} 19... Rfe8 {[%clk 0:02:11.5]} 20. Bc5 {[%clk 0:01:07.8]} 20... Qd8
{[%clk 0:01:24.6]} 21. Nd6 {[%clk 0:01:07.4]} 21... Ne4 {[%clk 0:01:19.7]} 22.
Nxc8 {[%clk 0:01:03.5]} 22... Qxc8 {[%clk 0:01:19.2]} 23. Rfd1 {[%clk
0:00:57.4]} 23... Qf5 {[%clk 0:01:17.4]} 24. Qf3 {[%clk 0:00:53.1]} 24... Qe6
{[%clk 0:01:16.8]} 25. Bd4 {[%clk 0:00:52.5]} 25... g6 {[%clk 0:01:14]} 26. h4
{[%clk 0:00:50.2]} 26... h5 {[%clk 0:01:13.9]} 27. Qf4 {[%clk 0:00:41.9]} 27...
Kh7 {[%clk 0:01:12.1]} 28. b4 {[%clk 0:00:40.1]} 28... Re7 {[%clk 0:01:02]} 29.
f3 {[%clk 0:00:30.9]} 29... Nd6 {[%clk 0:00:54.3]} 30. Bc5 {[%clk 0:00:29.9]}
30... Rd7 {[%clk 0:00:53]} 0-1

[Event "Early-Titled-Tuesday-Blitz-June-18-2024"]
[Site "Chess.com"]
[Date "2024.06.18"]
[Round "8"]
[White "laskakid"]
[Black "Defend1r"]
[Result "0-1"]
[WhiteElo "2383"]
[BlackElo "2537"]
[TimeControl "180+1"]
[EndTime "9:29:48 PDT"]
[Termination "Defend1r won by checkmate"]

1. Nf3 {[%clk 0:03:00.9]} 1... Nf6 {[%clk 0:02:57]} 2. b3 {[%clk 0:03:01]} 2...
e6 {[%clk 0:02:56.8]} 3. Bb2 {[%clk 0:03:00.1]} 3... Be7 {[%clk 0:02:57.2]} 4.
c4 {[%clk 0:02:59]} 4... b6 {[%clk 0:02:57.5]} 5. g3 {[%clk 0:02:57.2]} 5... Bb7
{[%clk 0:02:58]} 6. Bg2 {[%clk 0:02:57.5]} 6... O-O {[%clk 0:02:57.7]} 7. O-O
{[%clk 0:02:57.4]} 7... c5 {[%clk 0:02:57.8]} 8. d4 {[%clk 0:02:51.3]} 8... cxd4
{[%clk 0:02:52.3]} 9. Qxd4 {[%clk 0:02:51.3]} 9... Qc8 {[%clk 0:02:50.2]} 10.
Nc3 {[%clk 0:02:47.1]} 10... Nc6 {[%clk 0:02:47.7]} 11. Qf4 {[%clk 0:02:46.9]}
11... d6 {[%clk 0:02:45.3]} 12. Rfd1 {[%clk 0:02:44.5]} 12... a6 {[%clk
0:02:44]} 13. Rac1 {[%clk 0:02:41.4]} 13... e5 {[%clk 0:02:38]} 14. Qd2 {[%clk
0:02:34.2]} 14... Nd8 {[%clk 0:02:27.2]} 15. Ne1 {[%clk 0:02:24.5]} 15... Bxg2
{[%clk 0:02:26.3]} 16. Nxg2 {[%clk 0:02:24.6]} 16... Qb7 {[%clk 0:02:20.8]} 17.
Ne3 {[%clk 0:02:20.1]} 17... Ne6 {[%clk 0:02:17.4]} 18. Ned5 {[%clk 0:02:15.2]}
18... Nxd5 {[%clk 0:02:12.8]} 19. Nxd5 {[%clk 0:02:15.3]} 19... Rfd8 {[%clk
0:02:12]} 20. e3 {[%clk 0:01:58.5]} 20... Nc5 {[%clk 0:02:05]} 21. Qc2 {[%clk
0:01:46.1]} 21... g6 {[%clk 0:02:03.6]} 22. f4 {[%clk 0:01:42.7]} 22... f6
{[%clk 0:01:53.4]} 23. h4 {[%clk 0:01:32.6]} 23... Rac8 {[%clk 0:01:40.1]} 24.
f5 {[%clk 0:01:20.1]} 24... Kf7 {[%clk 0:01:39]} 25. Rf1 {[%clk 0:01:03.1]}
25... b5 {[%clk 0:01:27.8]} 26. fxg6+ {[%clk 0:00:55.4]} 26... hxg6 {[%clk
0:01:26.9]} 27. h5 {[%clk 0:00:55.6]} 27... Rg8 {[%clk 0:01:21.4]} 28. Qf2
{[%clk 0:00:31.4]} 28... Nd3 {[%clk 0:01:14.9]} 29. hxg6+ {[%clk 0:00:20]} 29...
Rxg6 {[%clk 0:01:11.7]} 30. Qf5 {[%clk 0:00:19.2]} 30... Rxg3+ {[%clk
0:00:52.3]} 31. Kh2 {[%clk 0:00:18.4]} 31... Rg6 {[%clk 0:00:52.1]} 32. Rf3
{[%clk 0:00:08.8]} 32... Nxc1 {[%clk 0:00:35.1]} 33. Nxe7 {[%clk 0:00:05.3]}
33... Rh8+ {[%clk 0:00:34.9]} 34. Rh3 {[%clk 0:00:05]} 34... Qg2# {[%clk
0:00:35.5]} 0-1

[Event "Early-Titled-Tuesday-Blitz-June-18-2024"]
[Site "Chess.com"]
[Date "2024.06.18"]
[Round "8"]
[White "Yan_Dyomin2010"]
[Black "atbenina64"]
[Result "1-0"]
[WhiteElo "2679"]
[BlackElo "2829"]
[TimeControl "180+1"]
[EndTime "9:29:50 PDT"]
[Termination "Yan_Dyomin2010 won by resignation"]

1. e4 {[%clk 0:02:55.5]} 1... c5 {[%clk 0:02:59.6]} 2. Nf3 {[%clk 0:02:55.1]}
2... d6 {[%clk 0:02:59.9]} 3. d4 {[%clk 0:02:54.1]} 3... cxd4 {[%clk 0:03:00.8]}
4. Qxd4 {[%clk 0:02:54.7]} 4... Nf6 {[%clk 0:02:59.5]} 5. Nc3 {[%clk 0:02:54.3]}
5... Nc6 {[%clk 0:02:59.1]} 6. Bb5 {[%clk 0:02:54.9]} 6... e5 {[%clk 0:02:58.7]}
7. Qd3 {[%clk 0:02:52.1]} 7... Be7 {[%clk 0:02:57.5]} 8. Bg5 {[%clk 0:02:51]}
8... O-O {[%clk 0:02:50.6]} 9. Bxf6 {[%clk 0:02:50.7]} 9... Bxf6 {[%clk
0:02:50.8]} 10. Nd5 {[%clk 0:02:51.6]} 10... Be6 {[%clk 0:02:44.9]} 11. Nxf6+
{[%clk 0:02:44]} 11... gxf6 {[%clk 0:02:36]} 12. c4 {[%clk 0:02:32.3]} 12... Nb4
{[%clk 0:02:06.3]} 13. Qd2 {[%clk 0:02:29.5]} 13... Qa5 {[%clk 0:02:05.9]} 14.
O-O {[%clk 0:02:23.9]} 14... a6 {[%clk 0:02:06.2]} 15. Qh6 {[%clk 0:01:51.9]}
15... Rfc8 {[%clk 0:01:34]} 16. Qxf6 {[%clk 0:01:35.5]} 16... axb5 {[%clk
0:01:31.4]} 17. Ng5 {[%clk 0:01:35.6]} 17... Qd8 {[%clk 0:01:30.5]} 18. Qh6
{[%clk 0:01:35.5]} 18... Bxc4 {[%clk 0:01:12.3]} 19. Nxh7 {[%clk 0:01:34.8]}
19... Bxf1 {[%clk 0:00:37.4]} 20. Rxf1 {[%clk 0:01:30]} 20... d5 {[%clk
0:00:17.3]} 21. Nf6+ {[%clk 0:01:29.9]} 21... Qxf6 {[%clk 0:00:17.3]} 22. Qxf6
{[%clk 0:01:30.8]} 22... d4 {[%clk 0:00:17.6]} 23. Qg5+ {[%clk 0:01:29.6]} 23...
Kf8 {[%clk 0:00:17.5]} 24. Qxe5 {[%clk 0:01:29.1]} 24... Nc6 {[%clk 0:00:17.1]}
25. Qh8+ {[%clk 0:01:27.5]} 25... Ke7 {[%clk 0:00:17.3]} 26. Qh4+ {[%clk
0:01:28.4]} 26... Kf8 {[%clk 0:00:17.8]} 27. Rd1 {[%clk 0:01:26.7]} 27... Rd8
{[%clk 0:00:17]} 28. e5 {[%clk 0:01:22.4]} 28... Rxa2 {[%clk 0:00:15.9]} 29. Qf6
{[%clk 0:01:15.8]} 29... Re8 {[%clk 0:00:13.2]} 30. h4 {[%clk 0:01:12.8]} 30...
Rxe5 {[%clk 0:00:11.4]} 31. Qh8+ {[%clk 0:00:50.7]} 31... Ke7 {[%clk 0:00:11]}
32. h5 {[%clk 0:00:51]} 32... Rxb2 {[%clk 0:00:10.9]} 33. h6 {[%clk 0:00:51.6]}
33... Ree2 {[%clk 0:00:10.9]} 34. h7 {[%clk 0:00:46.5]} 34... Rxf2 {[%clk
0:00:11]} 35. Qg7 {[%clk 0:00:46.9]} 1-0

[Event "Early-Titled-Tuesday-Blitz-June-18-2024"]
[Site "Chess.com"]
[Date "2024.06.18"]
[Round "8"]
[White "elizabethcastaneda"]
[Black "AndresDelgado77"]
[Result "1-0"]
[WhiteElo "2232"]
[BlackElo "2348"]
[TimeControl "180+1"]
[EndTime "9:29:56 PDT"]
[Termination "elizabethcastaneda won on time"]

1. e4 {[%clk 0:03:00.9]} 1... e6 {[%clk 0:02:59.7]} 2. d4 {[%clk 0:03:00.2]}
2... d5 {[%clk 0:02:59.8]} 3. Nd2 {[%clk 0:03:00.7]} 3... Nc6 {[%clk 0:02:59.5]}
4. Ngf3 {[%clk 0:02:57.6]} 4... Nf6 {[%clk 0:02:59.4]} 5. e5 {[%clk 0:02:55.3]}
5... Nd7 {[%clk 0:02:59.3]} 6. c3 {[%clk 0:02:53]} 6... f6 {[%clk 0:02:59]} 7.
exf6 {[%clk 0:02:50.4]} 7... Qxf6 {[%clk 0:02:59.1]} 8. Bd3 {[%clk 0:02:46.8]}
8... e5 {[%clk 0:02:58.8]} 9. dxe5 {[%clk 0:02:33.4]} 9... Ncxe5 {[%clk
0:02:58.8]} 10. Bc2 {[%clk 0:02:25]} 10... Bd6 {[%clk 0:02:52.1]} 11. O-O {[%clk
0:02:22.9]} 11... O-O {[%clk 0:02:52.3]} 12. Nd4 {[%clk 0:02:17.7]} 12... a6
{[%clk 0:02:45.2]} 13. N2f3 {[%clk 0:01:45.1]} 13... c5 {[%clk 0:02:36.8]} 14.
Bg5 {[%clk 0:01:43.1]} 14... Qf7 {[%clk 0:02:23.1]} 15. Nf5 {[%clk 0:01:39.3]}
15... Nxf3+ {[%clk 0:02:20.2]} 16. gxf3 {[%clk 0:01:31.5]} 16... Ne5 {[%clk
0:01:56.8]} 17. Nxd6 {[%clk 0:01:18.6]} 17... Nxf3+ {[%clk 0:01:55]} 18. Kh1
{[%clk 0:01:17.3]} 18... Qh5 {[%clk 0:01:49.7]} 19. Qxd5+ {[%clk 0:00:51.1]}
19... Kh8 {[%clk 0:00:16.8]} 20. Nf7+ {[%clk 0:00:47.3]} 20... Qxf7 {[%clk
0:00:16.7]} 21. Qxf7 {[%clk 0:00:47]} 21... Rxf7 {[%clk 0:00:17.2]} 22. Be3
{[%clk 0:00:46.4]} 22... Bd7 {[%clk 0:00:14]} 23. Be4 {[%clk 0:00:44.5]} 23...
Re8 {[%clk 0:00:14.1]} 24. Bxf3 {[%clk 0:00:42.2]} 24... Rxf3 {[%clk 0:00:13.5]}
25. Rfd1 {[%clk 0:00:38.7]} 25... Bc6 {[%clk 0:00:13.3]} 26. Kg1 {[%clk
0:00:38.9]} 26... Re6 {[%clk 0:00:12.7]} 27. Rd8+ {[%clk 0:00:37.4]} 27... Be8
{[%clk 0:00:12.7]} 28. Rad1 {[%clk 0:00:35.4]} 28... Rf7 {[%clk 0:00:10.1]} 29.
R1d6 {[%clk 0:00:34.1]} 29... Rxd6 {[%clk 0:00:09.4]} 30. Rxe8+ {[%clk
0:00:33.4]} 1-0

[Event "Early-Titled-Tuesday-Blitz-June-18-2024"]
[Site "Chess.com"]
[Date "2024.06.18"]
[Round "8"]
[White "arctic_t00"]
[Black "topce"]
[Result "1-0"]
[WhiteElo "2736"]
[BlackElo "2527"]
[TimeControl "180+1"]
[EndTime "9:29:57 PDT"]
[Termination "arctic_t00 won on time"]

1. d4 {[%clk 0:02:53.3]} 1... e6 {[%clk 0:02:58.2]} 2. Nf3 {[%clk 0:02:53.5]}
2... f5 {[%clk 0:02:57.1]} 3. g3 {[%clk 0:02:52.6]} 3... Nf6 {[%clk 0:02:57.5]}
4. Bg2 {[%clk 0:02:53.3]} 4... Ne4 {[%clk 0:02:57.7]} 5. O-O {[%clk 0:02:53.2]}
5... Be7 {[%clk 0:02:57.8]} 6. Nbd2 {[%clk 0:02:49.8]} 6... Bf6 {[%clk 0:02:57]}
7. c3 {[%clk 0:02:48.4]} 7... O-O {[%clk 0:02:49.9]} 8. Nxe4 {[%clk 0:02:39.3]}
8... fxe4 {[%clk 0:02:49.2]} 9. Ne5 {[%clk 0:02:40.1]} 9... d6 {[%clk
0:02:27.3]} 10. Ng4 {[%clk 0:02:40]} 10... d5 {[%clk 0:02:13.3]} 11. f3 {[%clk
0:02:40.4]} 11... exf3 {[%clk 0:02:09.8]} 12. Nxf6+ {[%clk 0:02:40.4]} 12...
gxf6 {[%clk 0:02:06.2]} 13. Bxf3 {[%clk 0:02:28]} 13... c6 {[%clk 0:01:56.6]}
14. e4 {[%clk 0:02:25.7]} 14... Kh8 {[%clk 0:01:50.9]} 15. Be3 {[%clk
0:02:13.6]} 15... Rg8 {[%clk 0:01:43.1]} 16. Qd2 {[%clk 0:02:08.9]} 16... b6
{[%clk 0:01:40.4]} 17. Rf2 {[%clk 0:02:03.9]} 17... Ba6 {[%clk 0:01:39.4]} 18.
Bg2 {[%clk 0:01:56.4]} 18... Nd7 {[%clk 0:01:38.4]} 19. Re1 {[%clk 0:01:54]}
19... Rg6 {[%clk 0:01:30.6]} 20. exd5 {[%clk 0:01:39.9]} 20... cxd5 {[%clk
0:01:27.7]} 21. Bh3 {[%clk 0:01:34.8]} 21... Qg8 {[%clk 0:01:16.5]} 22. Bf4
{[%clk 0:01:32.4]} 22... Nf8 {[%clk 0:00:59.5]} 23. Bd6 {[%clk 0:01:25]} 23...
Re8 {[%clk 0:00:57.9]} 24. Qf4 {[%clk 0:01:08.8]} 24... Bc8 {[%clk 0:00:44.5]}
25. Qh4 {[%clk 0:00:42.7]} 25... Bd7 {[%clk 0:00:34.9]} 26. Rxf6 {[%clk
0:00:39.5]} 26... Qg7 {[%clk 0:00:24.2]} 27. Be5 {[%clk 0:00:38.1]} 27... Rxg3+
{[%clk 0:00:03]} 28. hxg3 {[%clk 0:00:36.6]} 28... Ng6 {[%clk 0:00:03.1]} 29.
Rxg6 {[%clk 0:00:36.1]} 29... Qxe5 {[%clk 0:00:03.4]} 30. Rxe5 {[%clk
0:00:34.7]} 30... Rf8 {[%clk 0:00:02.5]} 31. Qh6 {[%clk 0:00:30.1]} 31... Rf1+
{[%clk 0:00:03.4]} 32. Kxf1 {[%clk 0:00:29.3]} 1-0

[Event "Early-Titled-Tuesday-Blitz-June-18-2024"]
[Site "Chess.com"]
[Date "2024.06.18"]
[Round "8"]
[White "N_Mullodzhanov"]
[Black "Senn71"]
[Result "0-1"]
[WhiteElo "2535"]
[BlackElo "2359"]
[TimeControl "180+1"]
[EndTime "9:29:59 PDT"]
[Termination "Senn71 won on time"]

1. e4 {[%clk 0:03:00.9]} 1... c5 {[%clk 0:02:35.1]} 2. c3 {[%clk 0:03:00.7]}
2... Nf6 {[%clk 0:02:32.2]} 3. e5 {[%clk 0:03:00.6]} 3... Nd5 {[%clk 0:02:31.5]}
4. Nf3 {[%clk 0:03:00.3]} 4... d6 {[%clk 0:02:28.7]} 5. exd6 {[%clk 0:03:00.1]}
5... e6 {[%clk 0:02:25.8]} 6. g3 {[%clk 0:03:00]} 6... Bxd6 {[%clk 0:02:24.9]}
7. Bg2 {[%clk 0:03:00.4]} 7... O-O {[%clk 0:02:24.3]} 8. O-O {[%clk 0:03:00.8]}
8... Nc6 {[%clk 0:02:22.1]} 9. d4 {[%clk 0:03:01]} 9... Qc7 {[%clk 0:02:05.3]}
10. Na3 {[%clk 0:02:54.3]} 10... a6 {[%clk 0:02:03.9]} 11. Nc4 {[%clk
0:02:53.8]} 11... cxd4 {[%clk 0:01:59]} 12. Nxd6 {[%clk 0:02:49.5]} 12... Qxd6
{[%clk 0:01:54.9]} 13. Nxd4 {[%clk 0:02:49.4]} 13... Rd8 {[%clk 0:01:45.5]} 14.
Re1 {[%clk 0:02:29.4]} 14... Rb8 {[%clk 0:01:37.6]} 15. Nxc6 {[%clk 0:02:17.8]}
15... Qxc6 {[%clk 0:01:35.1]} 16. Bf4 {[%clk 0:02:12.1]} 16... Ra8 {[%clk
0:01:29.6]} 17. Qg4 {[%clk 0:02:04.7]} 17... Nf6 {[%clk 0:01:08.4]} 18. Bxc6
{[%clk 0:01:19.2]} 18... Nxg4 {[%clk 0:01:07.3]} 19. Bc7 {[%clk 0:01:18.6]}
19... Rf8 {[%clk 0:01:02.7]} 20. Bf3 {[%clk 0:01:11.1]} 20... Nf6 {[%clk
0:01:00.8]} 21. Rad1 {[%clk 0:01:07.9]} 21... Nd5 {[%clk 0:01:00.3]} 22. Bd6
{[%clk 0:00:31.5]} 22... Rd8 {[%clk 0:00:57]} 23. Bc5 {[%clk 0:00:30.7]} 23...
b5 {[%clk 0:00:30.8]} 24. b3 {[%clk 0:00:09.7]} 24... Bb7 {[%clk 0:00:31.3]} 25.
c4 {[%clk 0:00:10]} 25... Rdc8 {[%clk 0:00:30.8]} 26. cxd5 {[%clk 0:00:03.6]}
26... Rxc5 {[%clk 0:00:30.1]} 27. dxe6 {[%clk 0:00:02.9]} 27... Bxf3 {[%clk
0:00:29.5]} 28. e7 {[%clk 0:00:03.4]} 28... Rcc8 {[%clk 0:00:28.6]} 29. Rd3
{[%clk 0:00:01.6]} 29... Bc6 {[%clk 0:00:25.9]} 30. Rc3 {[%clk 0:00:01.8]} 30...
Be8 {[%clk 0:00:25.6]} 31. Rd3 {[%clk 0:00:01.1]} 31... f6 {[%clk 0:00:24.7]}
32. f4 {[%clk 0:00:01.1]} 32... Kf7 {[%clk 0:00:25.1]} 0-1

[Event "Early-Titled-Tuesday-Blitz-June-18-2024"]
[Site "Chess.com"]
[Date "2024.06.18"]
[Round "8"]
[White "WiktoriaPOL"]
[Black "averageFM"]
[Result "0-1"]
[WhiteElo "2400"]
[BlackElo "2569"]
[TimeControl "180+1"]
[EndTime "9:30:00 PDT"]
[Termination "averageFM won by checkmate"]

1. c4 {[%clk 0:03:00.9]} 1... g6 {[%clk 0:02:59.5]} 2. Nc3 {[%clk 0:02:59.5]}
2... Nf6 {[%clk 0:02:46.2]} 3. g3 {[%clk 0:02:57.9]} 3... c5 {[%clk 0:02:41.5]}
4. Bg2 {[%clk 0:02:55.4]} 4... Bg7 {[%clk 0:02:41.7]} 5. e4 {[%clk 0:02:50.6]}
5... Nc6 {[%clk 0:02:39.4]} 6. Nge2 {[%clk 0:02:48.2]} 6... d6 {[%clk
0:02:39.3]} 7. d3 {[%clk 0:02:44]} 7... O-O {[%clk 0:02:38.9]} 8. O-O {[%clk
0:02:42.6]} 8... a6 {[%clk 0:02:39.2]} 9. h3 {[%clk 0:02:40]} 9... b5 {[%clk
0:02:38]} 10. e5 {[%clk 0:02:32.3]} 10... Nxe5 {[%clk 0:02:35.9]} 11. Bxa8
{[%clk 0:02:26.7]} 11... Bxh3 {[%clk 0:02:29.1]} 12. Bg2 {[%clk 0:02:25.3]}
12... Bxg2 {[%clk 0:02:29.2]} 13. Kxg2 {[%clk 0:02:25.2]} 13... Qa8+ {[%clk
0:02:29.1]} 14. f3 {[%clk 0:02:23.8]} 14... bxc4 {[%clk 0:02:29.4]} 15. dxc4
{[%clk 0:02:22.4]} 15... Nxc4 {[%clk 0:02:29.3]} 16. b3 {[%clk 0:02:14.8]} 16...
Ne5 {[%clk 0:02:19.3]} 17. Bb2 {[%clk 0:01:57.2]} 17... Nfg4 {[%clk 0:02:00.8]}
18. Bc1 {[%clk 0:01:36.7]} 18... Nxf3 {[%clk 0:01:49.5]} 19. Rxf3 {[%clk
0:01:33.2]} 19... Ne5 {[%clk 0:01:49.5]} 20. Qf1 {[%clk 0:00:30.2]} 20... d5
{[%clk 0:01:31.5]} 21. Bb2 {[%clk 0:00:14.4]} 21... d4 {[%clk 0:01:30.3]} 22.
Na4 {[%clk 0:00:13]} 22... Qd5 {[%clk 0:01:12]} 23. Nf4 {[%clk 0:00:10.8]} 23...
Qc6 {[%clk 0:01:05.4]} 24. Nd3 {[%clk 0:00:10.1]} 24... Ng4 {[%clk 0:00:52.5]}
25. Bc1 {[%clk 0:00:05.2]} 25... e5 {[%clk 0:00:49]} 26. Ndxc5 {[%clk
0:00:02.9]} 26... e4 {[%clk 0:00:48]} 27. Rf4 {[%clk 0:00:02.4]} 27... h5 {[%clk
0:00:40.5]} 28. Nxe4 {[%clk 0:00:01.7]} 28... f5 {[%clk 0:00:38.5]} 29. Bd2
{[%clk 0:00:02.1]} 29... Kh7 {[%clk 0:00:36.1]} 30. Qf3 {[%clk 0:00:01.8]} 30...
fxe4 {[%clk 0:00:28.6]} 31. Qxe4 {[%clk 0:00:01.6]} 31... Qxe4+ {[%clk
0:00:28.8]} 32. Rxe4 {[%clk 0:00:02.1]} 32... Rf2+ {[%clk 0:00:29]} 33. Kh3
{[%clk 0:00:02.7]} 33... Rh2# {[%clk 0:00:29]} 0-1

[Event "Early-Titled-Tuesday-Blitz-June-18-2024"]
[Site "Chess.com"]
[Date "2024.06.18"]
[Round "8"]
[White "Forge13"]
[Black "Sanyura"]
[Result "0-1"]
[WhiteElo "2664"]
[BlackElo "2531"]
[TimeControl "180+1"]
[EndTime "9:30:01 PDT"]
[Termination "Sanyura won by resignation"]

1. e4 {[%clk 0:02:59.1]} 1... c5 {[%clk 0:02:55.7]} 2. Nf3 {[%clk 0:02:58.5]}
2... e6 {[%clk 0:02:56.3]} 3. c3 {[%clk 0:02:57.2]} 3... d5 {[%clk 0:02:55.9]}
4. d3 {[%clk 0:02:57.8]} 4... Nc6 {[%clk 0:02:54.6]} 5. Nbd2 {[%clk 0:02:57.6]}
5... Bd6 {[%clk 0:02:54.7]} 6. g3 {[%clk 0:02:54.3]} 6... Nge7 {[%clk
0:02:55.1]} 7. Bg2 {[%clk 0:02:54.4]} 7... O-O {[%clk 0:02:52.2]} 8. O-O {[%clk
0:02:54.5]} 8... b6 {[%clk 0:02:52.7]} 9. Re1 {[%clk 0:02:54.2]} 9... Ba6 {[%clk
0:02:53]} 10. e5 {[%clk 0:02:53.3]} 10... Bc7 {[%clk 0:02:53]} 11. Nf1 {[%clk
0:02:45.8]} 11... d4 {[%clk 0:02:48.6]} 12. c4 {[%clk 0:02:40.1]} 12... Ng6
{[%clk 0:02:48]} 13. h4 {[%clk 0:02:12.9]} 13... Ngxe5 {[%clk 0:02:45.5]} 14.
Nxe5 {[%clk 0:02:10.4]} 14... Nxe5 {[%clk 0:02:46.4]} 15. Bf4 {[%clk 0:02:00.9]}
15... Nd7 {[%clk 0:02:31.9]} 16. Bxa8 {[%clk 0:01:52.7]} 16... Bxf4 {[%clk
0:02:31.6]} 17. Bg2 {[%clk 0:01:53.3]} 17... Bc7 {[%clk 0:02:30.1]} 18. Qa4
{[%clk 0:01:50.3]} 18... Bc8 {[%clk 0:02:27.3]} 19. Qxa7 {[%clk 0:01:49.4]}
19... e5 {[%clk 0:02:23.6]} 20. Nd2 {[%clk 0:01:48.1]} 20... f5 {[%clk 0:02:24]}
21. a3 {[%clk 0:01:43.7]} 21... e4 {[%clk 0:02:24]} 22. dxe4 {[%clk 0:01:43.5]}
22... f4 {[%clk 0:02:24.6]} 23. Nf1 {[%clk 0:01:38.8]} 23... f3 {[%clk
0:02:08.6]} 24. Bh1 {[%clk 0:01:37.5]} 24... Ne5 {[%clk 0:02:07.8]} 25. b4
{[%clk 0:01:33]} 25... Bd6 {[%clk 0:01:59.4]} 26. bxc5 {[%clk 0:01:28.3]} 26...
Bxc5 {[%clk 0:02:00.3]} 27. Nd2 {[%clk 0:01:27.9]} 27... d3 {[%clk 0:00:52.8]}
28. Nb3 {[%clk 0:01:24.4]} 28... Bxf2+ {[%clk 0:00:52.4]} 29. Kxf2 {[%clk
0:01:22.6]} 29... d2 {[%clk 0:00:44.5]} 30. Red1 {[%clk 0:00:44]} 30... Ng4+
{[%clk 0:00:43.5]} 31. Kf1 {[%clk 0:00:34.4]} 31... Qd3+ {[%clk 0:00:42]} 32.
Kg1 {[%clk 0:00:33.7]} 32... f2+ {[%clk 0:00:41.3]} 33. Kg2 {[%clk 0:00:34.3]}
33... Ne3+ {[%clk 0:00:33.4]} 34. Kh2 {[%clk 0:00:33.2]} 34... Nxd1 {[%clk
0:00:32.9]} 35. Rxd1 {[%clk 0:00:33.6]} 35... Qxb3 {[%clk 0:00:24.1]} 36. e5
{[%clk 0:00:20]} 36... Qxd1 {[%clk 0:00:21.7]} 37. Bd5+ {[%clk 0:00:20.6]} 37...
Kh8 {[%clk 0:00:21.7]} 38. Qe7 {[%clk 0:00:21.2]} 38... f1=Q {[%clk 0:00:21.2]}
0-1